[Event "Romanian Championship 2024"]
[Site "Eforie Nord"]
[Date "2024.02.26"]
[Round "4.9"]
[White "Ognean, Mihnea-Ionut"]
[Black "Coicev, Matei-Andrei"]
[Result "1-0"]
[ECO "B40"]
[WhiteElo "2382"]
[BlackElo "2122"]
[Annotator "TA"]
[PlyCount "65"]
[EventDate "2024.02.24"]
[EventType "swiss"]
[EventCountry "ROU"]
[SourceTitle "playchess.com"]
[Source "ChessBase"]
[SourceQuality "1"]
[TimeControl "40/5400+30:900+30"]

{[%evp 9,65,0,13,15,16,14,9,9,0,0,31,25,33,28,43,32,51,51,50,54,43,47,39,43,87,89,124,123,105,122,116,112,94,95,197,167,167,169,259,200,516,522,516,513,620,606,603,610,608,589,745,740,779,758,704,568,568,513]} 1. e4 {[%emt 0:00:05]} c5 {[%emt 0:00:19]} 2. Nf3 {[%emt 0:00:13]} e6 {[%emt 0:00:21]} 3. g3 {[%emt 0:00:20]} Nc6 {[%emt 0:00:29]} 4. Bg2 {[%emt 0:00:21]} Nf6 {[%emt 0:00:16]} 5. Qe2 {[%emt 0:00:43]} e5 {[%emt 0:00:17]} 6. O-O {[%emt 0:00:40]} Be7 {[%emt 0:01:23]} 7. c3 {[%emt 0:03:03]} O-O {[%emt 0:00:46]} 8. d3 {[%emt 0:00:08] The position is equal.} Re8 {[%emt 0:01:03]} 9. Na3 {[%emt 0:00:53]} Bf8 {[%emt 0:01:01]} 10. Bg5 {[%emt 0:00:39]} d6 {[%emt 0:01:35]} 11. Nc4 {[%emt 0:01:35]} Be6 {[%emt 0:00:57]} 12. Ne3 {[%emt 0:00:45]} h6 {[%emt 0:00:59]} 13. Bxf6 {[%emt 0:00:07]} Qxf6 {[%emt 0:00:07]} 14. Nd2 {[%emt 0:02:35]} Qd8 {[%emt 0:07:30]} 15. f4 {[%emt 0:10:57]} exf4 {[%emt 0:08:20]} 16. gxf4 {[%emt 0:01:06][%cal Bg3f4,Bf4f5][%mdl 32]} Be7 {[%emt 0:02:45][%cal Bf8e7,Be7f6,Bf6g7][%mdl 32]} 17. Kh1 {[%emt 0:04:25] White leaves nothing to chance now.} Bf6 {[%emt 0:04:59]} 18. Qh5 {[%emt 0:03:14]} g6 {[%emt 0:06:06]} 19. Qf3 {[%emt 0:05:28]} (19. Qxh6 Bg7 20. Qg5 Qxg5 21. fxg5 Rad8) 19... Bg7 {[%emt 0:02:01]} 20. f5 {[%emt 0:02:17]} Bd7 {[%emt 0:05:01]} 21. Ndc4 {[%emt 0:17:44]} Rf8 {[%emt 0:07:21]} (21... Ne5 $16 22. Nxe5 Bxe5) 22. Nxd6 {[%emt 0:05:31] [#] f6 is the strong threat.} Ne5 {[%emt 0:01:49]} 23. Qg3 {[%emt 0:00:40]} Qb8 {[%emt 0:06:20]} (23... Bc6 $142) 24. Nec4 {[%emt 0:02:37][%cal Be3c4,Bc4e5,Be5g6,Bg6e7][%mdl 32] Excellent horsemanship.} b5 $2 {[%emt 0:09:15]} (24... Rd8 25. Nxb7 Nxc4) 25. Nxe5 $18 {[%emt 0:01:55] White is clearly winning.} Qxd6 {[%emt 0:00:05]} 26. f6 {[%emt 0:00:12]} Bh8 {[%emt 0:00:37] [#]} 27. Nxg6 $1 {[%emt 0:00:07][%mdl 512]} Qxg3 {[%emt 0:00:19]} 28. Ne7+ {[%emt 0:00:03]} ({Stronger than} 28. hxg3 fxg6 29. e5 Rad8 $11) 28... Kh7 {[%emt 0:00:01]} 29. hxg3 {[%emt 0:00:05]} Rad8 {[%emt 0:02:46]} 30. e5 {[%emt 0:00:29] Threatening mate with Be4+.} h5 {[%emt 0:00:01]} 31. Be4+ {[%emt 0:01:42]} Kh6 {[%emt 0:00:02]} 32. Rad1 {[%emt 0:02:50]} Be6 {[%emt 0:00:50]} 33. a3 {[%emt 0:00:11] Weighted Error Value: White=0.13 (very precise) /Black=0.49.  Mistake:       	---       	Black=3      Inaccurate:     	---       	Black=3      OK:         	White=11    	Black=7      Best:        	---       	Black=1} 1-0

[Event "Romanian Championship 2024"]
[Site "Eforie Nord"]
[Date "2024.02.26"]
[Round "4.10"]
[White "Botea, David-Alexandru"]
[Black "Ilinca, Felix-Antonio"]
[Result "1/2-1/2"]
[ECO "B66"]
[WhiteElo "2081"]
[BlackElo "2415"]
[Annotator "TA"]
[PlyCount "128"]
[EventDate "2024.02.24"]
[EventType "swiss"]
[EventCountry "ROU"]
[SourceTitle "playchess.com"]
[Source "ChessBase"]
[SourceQuality "1"]
[TimeControl "40/5400+30:900+30"]

{[%evp 25,128,0,7,0,-4,0,0,0,0,0,0,0,0,0,0,-21,0,0,0,0,0,-2,-4,-16,0,0,0,0,11,9,35,37,38,30,37,11,10,14,8,0,0,0,8,8,13,13,98,87,92,85,89,95,287,169,185,175,169,91,75,82,82,83,82,83,83,75,90,90,380,75,75,75,75,75,75,75,75,75,392,8,8,8,10,8,8,0,0,0,0,0,0,0,0,0,0,0,0,0,0,0,0,0,0,0,0]} 1. e4 {[%emt 0:00:08]} c5 {[%emt 0:00:12]} 2. Nf3 {[%emt 0:00:10]} d6 {[%emt 0:00:16]} 3. d4 {[%emt 0:00:05]} cxd4 {[%emt 0:00:16]} 4. Nxd4 {[%emt 0:00:06]} Nf6 {[%emt 0:00:14]} 5. Nc3 {[%emt 0:00:16]} Nc6 {[%emt 0:00:16]} 6. Bg5 {[%emt 0:00:26]} e6 {[%emt 0:00:29]} 7. Qd2 {[%emt 0:00:25]} a6 {[%emt 0:00:21]} 8. O-O-O {[%emt 0:00:54]} Be7 {[%emt 0:00:19]} 9. f3 {[%emt 0:01:08]} Nxd4 {[%emt 0:00:28]} 10. Qxd4 {[%emt 0:00:18]} b5 {[%emt 0:00:18]} 11. h4 {[%emt 0:08:48]} Bb7 {[%emt 0:00:32]} 12. Qd2 {[%emt 0:08:22]} h6 {[%emt 0:07:21]} 13. Bxf6 {[%emt 0:07:08]} Bxf6 {[%emt 0:03:51]} 14. Qxd6 {[%emt 0:01:13]} Qxd6 {[%emt 0:04:49]} 15. Rxd6 {[%emt 0:00:34]} Ke7 {[%emt 0:01:26]} 16. Rd1 {[%emt 0:10:31]} Rac8 {[%emt 0:07:27]} 17. Ne2 {[%emt 0:01:12]} g5 {[%emt 0:04:53]} 18. hxg5 {[%emt 0:08:30]} hxg5 {[%emt 0:03:00]} 19. Rxh8 {[%emt 0:01:52]} Rxh8 {[%emt 0:00:29]} 20. c3 {[%emt 0:02:50]} Be5 {[%emt 0:03:48]} 21. Nd4 {[%emt 0:04:38]} g4 {[%emt 0:02:58]} 22. Kc2 {[%emt 0:04:22]} Rh2 {[%emt 0:05:32]} 23. Rd2 {[%emt 0:03:57]} Bf4 {[%emt 0:03:06]} 24. Re2 {[%emt 0:01:59]} Bg3 {[%emt 0:04:50]} (24... Rh1 $5 25. Re1 $8 Bg3 $17) 25. Nb3 {[%emt 0:06:04]} Rh1 {[%emt 0:03:41]} 26. Nd2 $1 {[%emt 0:00:15]} Kf6 {[%emt 0:07:56]} 27. fxg4 {[%emt 0:05:52]} Rh4 {[%emt 0:02:11]} 28. Re3 {[%emt 0:02:29]} Rxg4 {[%emt 0:01:06]} 29. Be2 {[%emt 0:00:41]} Rg8 {[%emt 0:09:11]} 30. Rd3 {[%emt 0:03:35]} Bc6 {[%emt 0:02:53]} 31. Bf3 {[%emt 0:01:12]} Ke5 {[%emt 0:01:02]} 32. Nf1 {[%emt 0:08:43]} Bf4 {[%emt 0:03:34]} 33. Rd4 {[%emt 0:01:01]} f5 {[%emt 0:03:53]} 34. Kd3 {[%emt 0:03:09]} Bc1 {[%emt 0:06:09]} (34... Bxe4+ {simplifies} 35. Bxe4 fxe4+ 36. Rxe4+ Kf5) 35. b3 {[%emt 0:01:14]} Rf8 {[%emt 0:05:41]} (35... fxe4+ $11 {remains equal.} 36. Bxe4 Bxe4+ 37. Rxe4+ Kf6) 36. exf5 $16 {[%emt 0:01:39]} Bxf3 {[%emt 0:00:16]} 37. gxf3 {[%emt 0:00:01]} Rxf5 {[%emt 0:00:15]} 38. Nh2 {[%emt 0:00:59]} Rf4 $2 {[%emt 0:01:51]} (38... Kf6 $16) 39. Ng4+ {[%emt 0:02:16]} (39. Kc2 $142 Ba3 40. Rxf4 Kxf4 41. b4) 39... Kf5 $18 {[%emt 0:00:11]} 40. Rxf4+ {[%emt 0:00:00]} Kxf4 {[%emt 0:00:00]} 41. Ke2 {[%emt 0:01:18]} (41. Kc2 $1 $18 {[%cal Rc2c1]} Ba3 42. b4 Kxf3 43. Ne5+ Ke4 44. Nd7) 41... Bb2 $16 {[%emt 0:03:38]} 42. c4 {[%emt 0:01:37]} bxc4 {[%emt 0:02:03]} 43. bxc4 {[%emt 0:00:02]} Ba3 {[%emt 0:01:00]} 44. Nf2 {[%emt 0:01:00]} Ke5 {[%emt 0:00:14]} 45. Kd3 {[%emt 0:00:27]} Bc5 {[%emt 0:01:28]} 46. Ne4 {[%emt 0:01:06]} Ba7 $2 {[%emt 0:00:26][%mdl 8192]} (46... Ba3 $16) 47. a4 $2 {[%emt 0:02:00]} (47. Kc3 $1 $18 {[%cal Rc3b4]}) 47... a5 $16 {[%emt 0:03:47] [#]} 48. Nd2 $1 {[%emt 0:01:56]} (48. c5 Kd5 $11) 48... Bb6 {[%emt 0:00:32]} 49. Nb3 {[%emt 0:00:58]} Bc7 {[%emt 0:00:29]} 50. Nc5 {[%emt 0:01:58]} Kd6 {[%emt 0:00:59]} 51. Ne4+ {[%emt 0:00:38]} Ke5 $2 {[%emt 0:00:28][%mdl 8192] [#]} (51... Kd7 $16 {is a better chance.} 52. Ng5 Bb6) 52. Nc3 $2 {[%emt 0:03:26]} (52. Kc3 $1 $18 Bd8 53. Nc5) 52... Bb6 {[%emt 0:00:53]} 53. Ne2 {[%emt 0:00:12]} Bc5 $1 {[%emt 0:01:08]} 54. f4+ {[%emt 0:00:33]} Kf5 {[%emt 0:01:57]} 55. Nd4+ {[%emt 0:02:51]} Bxd4 $1 {[%emt 0:00:23]} 56. Kxd4 {[%emt 0:00:02]} Kxf4 {[%emt 0:00:08]} 57. c5 {[%emt 0:00:51]} (57. Kc5 $5) 57... e5+ {[%emt 0:00:05]} 58. Kc3 {[%emt 0:01:51]} (58. Kc4 $5 e4 $8 59. Kb5 $11) 58... Kf5 $1 {[%emt 0:00:54]} 59. Kd3 {[%emt 0:01:58]} e4+ {[%emt 0:01:58]} 60. Kd4 {[%emt 0:00:41]} Kf4 {[%emt 0:00:09]} 61. c6 {[%emt 0:00:20]} e3 {[%emt 0:00:17]} 62. Kd3 {[%emt 0:00:49]} (62. c7 $5 e2 $8 63. c8=Q $11 (63. c8=B e1=Q 64. Kd5 Qe5+ 65. Kc6 Qc3+ 66. Kd7 Ke5 67. Ba6 Qc5 68. Bb5 Qd6+ 69. Kc8 Qb6 70. Kd7 Qb7+ 71. Ke8 Qg7 72. Kd8 Kd6)) 62... Kf3 {[%emt 0:00:07]} 63. c7 {[%emt 0:00:07]} e2 {[%emt 0:00:05]} 64. c8=Q {[%emt 0:00:06]} (64. c8=B e1=Q (64... e1=B 65. Bh3 $11) 65. Bb7+ Kf4 66. Ba8 Qe3+ 67. Kc4 Qd2 68. Bc6 Ke5 69. Bf3 Qc2+ 70. Kb5 Kd6 71. Kxa5 Qc5+ 72. Ka6 Kc7 73. a5 Qc4+ 74. Ka7 Qb5 75. Bh1 Qxa5#) (64. Kd2 $5 Kf2 $8 65. Kc2 $11) 64... e1=Q {[%emt 0:00:06]} 1/2-1/2

[Event "Romanian Championship 2024"]
[Site "Eforie Nord"]
[Date "2024.02.26"]
[Round "4.11"]
[White "David, Alexandru-Vasile"]
[Black "Gales, Randi-Ioan"]
[Result "0-1"]
[ECO "D35"]
[WhiteElo "2360"]
[BlackElo "2062"]
[Annotator "TA"]
[PlyCount "68"]
[EventDate "2024.02.24"]
[EventType "swiss"]
[EventCountry "ROU"]
[SourceTitle "playchess.com"]
[Source "ChessBase"]
[SourceQuality "1"]
[TimeControl "40/5400+30:900+30"]

{[%evp 27,68,37,47,36,23,0,0,-6,0,-302,-304,-298,-292,-390,-399,-414,-412,-397,-407,-410,-411,-388,-408,-407,-396,-415,-401,-427,-428,-424,-418,-416,-422,-427,-417,-422,0,-427,-428,-414,-409,-456,-500]} 1. d4 {[%emt 0:00:03]} d5 {[%emt 0:00:06]} 2. c4 {[%emt 0:00:55]} e6 {[%emt 0:00:05]} 3. Nc3 {[%emt 0:00:17]} Be7 {[%emt 0:00:13]} 4. Nf3 {[%emt 0:02:38]} Nf6 {[%emt 0:00:15]} 5. cxd5 {[%emt 0:00:17]} exd5 {[%emt 0:00:10]} 6. h3 {[%emt 0:00:10]} O-O {[%emt 0:00:48]} 7. Bf4 {[%emt 0:00:25]} c6 {[%emt 0:00:18]} 8. e3 {[%emt 0:00:17]} Nbd7 {[%emt 0:00:10][%cal Bb8d7,Bd7f8,Bf8g6,Bg6h4,Bh4g2][%mdl 32]} 9. Bd3 {[%emt 0:02:16]} Re8 {[%emt 0:00:05]} 10. O-O {[%emt 0:00:30]} Nf8 {[%emt 0:00:23]} 11. Qc2 {[%emt 0:00:08]} Ng6 {[%emt 0:00:09]} 12. Bh2 {[%emt 0:00:10]} Bd6 {[%emt 0:00:15]} 13. Bxd6 {[%emt 0:00:31]} Qxd6 {[%emt 0:00:08]} 14. Rab1 {[%emt 0:00:06]} Qe7 {[%emt 0:00:15]} 15. b4 {[%emt 0:02:42]} a6 {[%emt 0:00:14]} 16. Nd2 {[%emt 0:05:11]} Nh4 {[%emt 0:01:32]} 17. Rfe1 {[%emt 0:02:56] The position is equal.} Nh5 {[%emt 0:03:56]} 18. f4 {[%emt 0:12:50][%mdl 8192] [#] Inhibits Qg5.} (18. Bxh7+ $2 Kh8 19. g4 g6 $19) (18. Kh1 $11 {and White is okay.}) 18... Nxg2 $1 $19 {[%emt 0:16:34][%mdl 512]} 19. Kxg2 {[%emt 0:28:27][%cal Od2f3] aiming for Nf3!} Qh4 {[%emt 0:00:34]} 20. Bxh7+ {[%emt 0:00:10]} Kh8 {[%emt 0:00:19]} 21. Bf5 {[%emt 0:00:08]} Qg3+ {[%emt 0:04:03]} 22. Kh1 {[%emt 0:16:14][%cal Oc2d1] [#]} Bxf5 $1 {[%emt 0:00:31]} ({Not} 22... Rxe3 23. Rxe3 Qxe3 24. Bxc8 Rxc8 25. Nf1 Qxh3+ (25... Qf3+ 26. Qg2 $11) 26. Qh2 Qf3+ (26... Qxh2+ 27. Nxh2 Re8 28. Na4 $11) 27. Qg2 (27. Kg1 Kg8 $11) 27... Qxc3 28. Qg4 $11) 23. Qxf5 {[%emt 0:01:08] [#]} Qxe1+ $3 {[%emt 0:00:05][%mdl 512]} 24. Rxe1 {[%emt 0:00:04]} Ng3+ {[%emt 0:00:03]} 25. Kg2 {[%emt 0:00:04]} Nxf5 {[%emt 0:00:02]} 26. Kf2 {[%emt 0:00:08]} Re7 {[%emt 0:02:57]} 27. Nf3 {[%emt 0:00:22]} f6 {[%emt 0:00:30]} 28. a4 {[%emt 0:00:57]} Rae8 {[%emt 0:00:54]} 29. Nd1 {[%emt 0:00:06]} Kg8 {[%emt 0:00:35]} 30. a5 {[%emt 0:00:07]} Kh8 {[%emt 0:00:42]} 31. Re2 {[%emt 0:00:28]} Kg8 {[%emt 0:00:43]} 32. Re1 $1 {[%emt 0:00:08]} Kf7 {[%emt 0:00:03]} 33. Re2 {[%emt 0:00:41]} Rh8 {[%emt 0:00:54]} 34. Kg2 {[%emt 0:00:13]} Rb8 {[%emt 0:00:15] Black took control after the opening.   Weighted Error Value: White=0.38/Black=0.21 (precise) .  Loses game:     	White=1     	---        Inaccurate:     	White=1     	---        OK:         	White=7     	Black=10     Best:        	White=1     	Black=2      Strong:       	White=1     	Black=1      Brilliant:      	---       	Black=2} 0-1

[Event "Romanian Championship 2024"]
[Site "Eforie Nord"]
[Date "2024.02.26"]
[Round "4.12"]
[White "Prelipcean, Eric-Matei"]
[Black "Bonte, Andrei-Mihai"]
[Result "1/2-1/2"]
[ECO "D60"]
[WhiteElo "2103"]
[BlackElo "2266"]
[Annotator "TA"]
[PlyCount "64"]
[EventDate "2024.02.24"]
[EventType "swiss"]
[EventCountry "ROU"]
[SourceTitle "playchess.com"]
[Source "ChessBase"]
[SourceQuality "1"]
[TimeControl "40/5400+30:900+30"]

{[%evp 18,64,0,0,0,0,0,0,0,0,0,-6,-12,-16,-7,-15,-14,-17,-17,-6,-10,-11,-16,-13,-7,-14,-14,-10,-11,-6,-8,-13,-13,-10,-13,-12,-3,-6,-3,-6,-3,-8,-7,0,-5,-4,0,-2,0]} 1. d4 {[%emt 0:00:04]} Nf6 {[%emt 0:00:55]} 2. Nf3 {[%emt 0:00:16]} d5 {[%emt 0:00:41]} 3. c4 {[%emt 0:01:06]} e6 {[%emt 0:00:16]} 4. Nc3 {[%emt 0:00:28]} Nbd7 {[%emt 0:02:44]} 5. Bg5 {[%emt 0:00:45]} Be7 {[%emt 0:00:30]} 6. e3 {[%emt 0:00:23]} O-O {[%emt 0:00:11]} 7. Bd3 {[%emt 0:01:35]} h6 {[%emt 0:03:33]} 8. Bxf6 {[%emt 0:01:20]} Nxf6 {[%emt 0:00:12]} 9. O-O {[%emt 0:01:14]} dxc4 {[%emt 0:02:22]} 10. Bxc4 {[%emt 0:00:23] The position is equal.} c5 {[%emt 0:03:10]} 11. Rc1 {[%emt 0:01:11]} a6 {[%emt 0:01:37]} 12. dxc5 {[%emt 0:04:09]} Bxc5 {[%emt 0:00:57]} 13. Qxd8 {[%emt 0:03:31]} Rxd8 {[%emt 0:00:05]} 14. Rfd1 {[%emt 0:00:08]} Rxd1+ {[%emt 0:08:46]} 15. Rxd1 {[%emt 0:00:23]} b5 {[%emt 0:01:04] Prevents Na4.} 16. Rd8+ {[%emt 0:01:34]} Bf8 {[%emt 0:00:07]} 17. Bd3 {[%emt 0:00:48]} Bb7 {[%emt 0:00:32]} 18. Rxa8 {[%emt 0:00:56]} Bxa8 {[%emt 0:00:02]} 19. a4 {[%emt 0:00:18]} bxa4 {[%emt 0:04:49]} 20. Nxa4 {[%emt 0:00:54]} Bc6 {[%emt 0:02:43]} 21. Nc3 {[%emt 0:06:27]} Bb7 {[%emt 0:01:49]} 22. Ne5 {[%emt 0:01:47]} Bd6 {[%emt 0:07:52]} 23. Nc4 {[%emt 0:01:08]} Bc7 {[%emt 0:00:20]} 24. Na4 {[%emt 0:17:48]} Nd7 {[%emt 0:04:39]} 25. b4 {[%emt 0:11:32]} Kf8 {[%emt 0:05:39]} 26. f4 {[%emt 0:03:06]} Ke7 {[%emt 0:02:46]} 27. Kf2 {[%emt 0:00:29]} Bc6 {[%emt 0:05:26]} 28. Nc3 {[%emt 0:01:08]} Nf6 {[%emt 0:01:31]} 29. h3 {[%emt 0:01:47]} Bb7 {[%emt 0:13:16]} 30. g3 {[%emt 0:01:35]} Nd5 {[%emt 0:02:36]} 31. Nxd5+ {[%emt 0:00:59]} Bxd5 {[%emt 0:00:09]} 32. e4 {[%emt 0:01:25]} Bxc4 {[%emt 0:03:12] Not much happened in this game.   Weighted Error Value: White=0.01 (flawless) /Black=0.02 (flawless) .  OK:         	White=14    	Black=7      Best:        	---       	Black=1} 1/2-1/2

[Event "Romanian Championship 2024"]
[Site "Eforie Nord"]
[Date "2024.02.26"]
[Round "4.13"]
[White "Tudor, Henry Edward"]
[Black "Danila, Tudor-Gabriel"]
[Result "1-0"]
[ECO "E53"]
[WhiteElo "2239"]
[BlackElo "1901"]
[Annotator "TA"]
[PlyCount "75"]
[EventDate "2024.02.24"]
[EventType "swiss"]
[EventCountry "ROU"]
[SourceTitle "playchess.com"]
[Source "ChessBase"]
[SourceQuality "1"]
[TimeControl "40/5400+30:900+30"]

{[%evp 23,75,0,7,0,0,2,5,0,29,33,31,31,48,37,50,51,62,21,27,27,41,25,24,22,50,0,58,43,35,42,52,47,50,43,60,85,208,169,183,176,182,184,333,256,726,673,772,661,775,775,748,760,1125,1116]} 1. d4 {[%emt 0:00:02]} Nf6 {[%emt 0:00:04]} 2. c4 {[%emt 0:00:03]} e6 {[%emt 0:00:04]} 3. Nc3 {[%emt 0:00:03]} Bb4 {[%emt 0:00:04]} 4. e3 {[%emt 0:00:03]} O-O {[%emt 0:00:14]} 5. Bd3 {[%emt 0:00:03]} d5 {[%emt 0:00:07]} 6. a3 {[%emt 0:00:05]} Bxc3+ {[%emt 0:00:10]} 7. bxc3 {[%emt 0:00:01]} dxc4 {[%emt 0:00:08]} 8. Bxc4 {[%emt 0:00:02]} c5 {[%emt 0:00:06]} 9. Nf3 {[%emt 0:00:07]} Qc7 {[%emt 0:00:58]} 10. Be2 {[%emt 0:00:06]} b6 {[%emt 0:00:55]} 11. Bb2 {[%emt 0:00:15]} Bb7 {[%emt 0:03:09]} 12. O-O {[%emt 0:02:14]} Nbd7 {[%emt 0:02:12]} 13. c4 {[%emt 0:04:49]} (13. Nd2 {keeps more tension.} Rfd8 14. a4 Nf8 15. Qb3) 13... Rac8 {[%emt 0:02:04]} 14. Rc1 {[%emt 0:11:51]} Rfd8 {[%emt 0:00:59]} 15. Qb3 {[%emt 0:04:02] The position is equal.} Qb8 {[%emt 0:04:17]} 16. Rfd1 {[%emt 0:06:09]} Qa8 {[%emt 0:00:28]} 17. a4 {[%emt 0:00:34]} Bc6 {[%emt 0:03:48]} 18. Qa2 {[%emt 0:16:18]} Nf8 {[%emt 0:09:35]} 19. Qa1 {[%emt 0:10:14][%cal Od4d5] Threatens to win with d5!} cxd4 {[%emt 0:00:06]} 20. exd4 {[%emt 0:04:09][%cal Od4d5]} Ng6 {[%emt 0:00:23] [#] Strongly threatening ...Nf4.} 21. d5 $1 {[%emt 0:07:43]} exd5 {[%emt 0:00:13]} 22. Bxf6 {[%emt 0:01:17]} gxf6 {[%emt 0:00:04]} 23. Qxf6 {[%emt 0:00:20] Nd4 would now be deadly.} Qb7 $1 {[%emt 0:01:27][%cal Ob7e7]} 24. Qb2 {[%emt 0:08:52]} (24. Re1 $14) 24... Qe7 {[%emt 0:07:15]} ({Black should play} 24... Bxa4 $11 25. Re1 Qd7) 25. cxd5 $14 {[%emt 0:01:07]} Bxa4 {[%emt 0:00:09]} 26. Rxc8 {[%emt 0:07:01]} Rxc8 {[%emt 0:01:29]} 27. d6 $36 {[%emt 0:00:14][%mdl 2048] Black is under pressure.} Qe8 {[%emt 0:00:53]} 28. Rd2 {[%emt 0:02:12] And now h4 would win.} Rc5 {[%emt 0:07:41]} 29. h4 {[%emt 0:02:45][%cal Oh4h5]} Nf4 {[%emt 0:03:30] This costs Black the game.} (29... Bd7 $16) 30. Bf1 {[%emt 0:03:58]} Bd7 {[%emt 0:01:47] [#]} 31. g3 $1 {[%emt 0:03:23]} Ng6 {[%emt 0:03:55] [#]} 32. Re2 {[%emt 0:01:19] Dodges Ne5} Qb8 {[%emt 0:02:23]} (32... Qd8 {was worth a try.}) 33. Ng5 {[%emt 0:01:04]} Bc6 {[%emt 0:02:01] [#]} (33... Qxd6 $2 {is the wrong capture.} 34. Ne4 Qc6 35. Nf6+ Kf8 36. Nxh7+ Kg8 37. Nf6+ Kf8 38. h5 $18) (33... Rxg5 34. hxg5 Qxd6) 34. d7 $1 $18 {[%emt 0:02:59][%mdl 512] White is clearly winning.} Bxd7 {[%emt 0:00:58]} 35. Ne4 {[%emt 0:00:04] White wants to mate with Nf6+.} Rc6 {[%emt 0:00:05]} 36. Nf6+ {[%emt 0:00:16]} Rxf6 {[%emt 0:00:04]} 37. Qxf6 {[%emt 0:00:01] Black must now prevent h5.} Qc7 {[%emt 0:00:29]} 38. h5 {[%emt 0:00:26] Weighted Error Value: White=0.14 (very precise) /Black=0.26 (precise) .  Mistake:       	White=1     	Black=4      Inaccurate:     	White=1     	Black=1      OK:         	White=11    	Black=9      Best:        	White=1     	---        Strong:       	White=1     	Black=1} 1-0

[Event "Romanian Championship 2024"]
[Site "Eforie Nord"]
[Date "2024.02.26"]
[Round "4.14"]
[White "Ciocani, Iosif"]
[Black "Nastase, Robert-Paul"]
[Result "0-1"]
[ECO "B12"]
[WhiteElo "2063"]
[BlackElo "2226"]
[Annotator "TA"]
[PlyCount "66"]
[EventDate "2024.02.24"]
[EventType "swiss"]
[EventCountry "ROU"]
[SourceTitle "playchess.com"]
[Source "ChessBase"]
[SourceQuality "1"]
[TimeControl "40/5400+30:900+30"]

{[%evp 9,66,15,13,12,10,-30,-32,-31,-30,-35,-32,-43,-20,-26,5,-44,-26,-72,-78,-60,-71,-48,-60,-82,0,0,7,-34,-31,-28,-31,-41,-39,-57,-14,-196,-196,-193,-126,-143,-140,-249,-237,-381,-370,-386,-385,-377,-374,-370,-362,-347,-312,-507,-518,-722,-719,-698,-694]} 1. e4 {[%emt 0:00:03]} c6 {[%emt 0:00:06]} 2. d4 {[%emt 0:00:09]} d5 {[%emt 0:00:04]} 3. e5 {[%emt 0:00:05]} Bf5 {[%emt 0:00:13]} 4. h4 {[%emt 0:00:06]} h5 {[%emt 0:00:04]} 5. Bd3 {[%emt 0:00:04]} Bxd3 {[%emt 0:00:06]} 6. Qxd3 {[%emt 0:00:05][%cal Oe5e6]} Qa5+ {[%emt 0:00:10]} 7. b4 {[%emt 0:05:40]} Qxb4+ {[%emt 0:00:30]} 8. Nd2 {[%emt 0:00:11][%cal Oe5e6] Black is slightly better.} e6 {[%emt 0:03:40]} 9. Rb1 {[%emt 0:00:22]} Qe7 {[%emt 0:00:08]} 10. Ngf3 {[%emt 0:00:30]} Nh6 {[%emt 0:05:35]} 11. c4 {[%emt 0:09:21]} Qc7 {[%emt 0:02:48]} 12. cxd5 {[%emt 0:30:27]} (12. Nf1 $11 {was preferrable.}) 12... cxd5 $15 {[%emt 0:00:36]} 13. Qb5+ {[%emt 0:00:33]} (13. Nf1 $11 {should be considered.}) 13... Nc6 $17 {[%emt 0:00:06]} 14. Qxb7 {[%emt 0:00:26]} Qxb7 {[%emt 0:00:04]} 15. Rxb7 {[%emt 0:00:07]} O-O-O {[%emt 0:00:06]} 16. Rb1 {[%emt 0:13:51]} f6 {[%emt 0:10:36]} ({Black should try} 16... Nf5 $17) 17. Nb3 {[%emt 0:07:02]} Kd7 {[%emt 0:03:31]} 18. Ke2 {[%emt 0:05:02]} Rb8 {[%emt 0:04:22]} 19. Bf4 {[%emt 0:05:47] [#] Strongly threatening exf6.} Rb4 {[%emt 0:00:07]} 20. Rhc1 {[%emt 0:01:53]} Nf5 {[%emt 0:00:11]} 21. Kd3 {[%emt 0:01:04]} Be7 {[%emt 0:03:57]} 22. Rc3 $2 {[%emt 0:01:46] [#]} (22. a3 $11 {and White stays safe.} Rb6 23. Nc5+ Bxc5 24. dxc5 Rxb1 25. Rxb1) 22... Rc8 $1 $19 {[%emt 0:00:32][%cal Ob4c4]} 23. g3 {[%emt 0:06:10]} Kd8 {[%emt 0:04:07]} (23... Ra4 $19 {...Nb4+ would now be deadly.} 24. Nc5+ Bxc5 25. Rb7+ Ke8 26. dxc5 Rxa2) 24. a3 {[%emt 0:04:42]} Rc4 {[%emt 0:00:15] Dancing on a razor blade. Black is more active.} 25. Bd2 {[%emt 0:03:42]} (25. Rbc1 $17 {was necessary.}) 25... Bxa3 {[%emt 0:00:36]} 26. Na5 {[%emt 0:01:19]} (26. Nc5 $142 Rxd4+ (26... Ncxd4 27. Nxe6+ Nxe6 28. Rxa3 $17) (26... Nfxd4 $2 27. Nxd4 Rxd4+ 28. Ke2 $19) 27. Ke2 Bxc5 28. Rxc5) 26... Nb4+ {[%emt 0:00:49]} 27. Rxb4 {[%emt 0:01:51]} Bxb4 {[%emt 0:00:06]} 28. Rxc4 {[%emt 0:00:43]} dxc4+ {[%emt 0:00:12]} 29. Nxc4 {[%emt 0:00:06]} Bxd2 {[%emt 0:00:18]} 30. Nfxd2 {[%emt 0:00:04] KRN-KNN} Ke7 {[%emt 0:00:37]} 31. Ne4 $2 {[%emt 0:00:12]} (31. Na5 {is a better defense.}) 31... Rd8 {[%emt 0:00:33] Black is clearly winning.} 32. Ned6 {[%emt 0:00:11]} Nxd6 {[%emt 0:00:11]} 33. exd6+ {[%emt 0:03:26]} Rxd6 {[%emt 0:00:33] Weighted Error Value: White=0.54/Black=0.14 (very precise) .  Loses game:     	White=1     	---        Mistake:       	White=5     	Black=2      Inaccurate:     	White=3     	Black=2      OK:         	White=8     	Black=14     Best:        	White=1     	Black=3} 0-1